fUSD/lending_fUSD_20260427
["ID","MTS","AMOUNT","RATE_DAILY","PERIOD"]
[421229895,1777275040425,-13818.81273707,9.9e-05,2]
[421229934,1777275043103,-947.95600551,9.9e-05,2]
[421229939,1777275045739,-9112.03713281,9.9e-05,2]
[421229940,1777275045796,-2794.53026329,9.9e-05,2]
[421229941,1777275045807,-4700.58213335,9.9e-05,2]
[421229942,1777275045854,-1777.293386,9.9e-05,2]
[421229943,1777275045865,-324.80100658,9.9e-05,2]
[421229944,1777275045911,-1554.88445884,9.9e-05,2]
[421229947,1777275107606,400.0,0.0003287,120]
[421229948,1777275135978,500.0,0.0003287,120]
[421229950,1777275178093,170.88732866,0.000321,120]
[421229951,1777275251153,494.99995352,0.00032877,120]
[421229953,1777275333897,1000.0,0.00032876,120]
[421229954,1777275333940,1000.0,0.00032876,120]
[421229955,1777275333980,1000.0,0.00032876,120]
[421229956,1777275334016,1000.0,0.00032876,120]
[421229957,1777275334334,1000.0,0.00032876,120]
[421229958,1777275334566,1000.0,0.00032876,120]
[421229959,1777275334786,1000.0,0.00032876,120]
[421229960,1777275335022,1000.0,0.00032876,120]
[421229961,1777275335254,1000.0,0.00032876,120]
[421229962,1777275335473,1000.0,0.00032876,120]
[421229963,1777275335728,1000.0,0.00032876,120]
[421229964,1777275335962,1000.0,0.00032876,120]
[421229965,1777275336209,1000.0,0.00032876,120]
[421229966,1777275336441,1000.0,0.00032876,120]
[421229967,1777275336670,1000.0,0.00032876,120]
[421229968,1777275337111,1000.0,0.00032876,120]
[421229969,1777275337340,1000.0,0.00032876,120]
[421229970,1777275337578,1000.0,0.00032876,120]
[421229971,1777275337804,1000.0,0.00032876,120]
[421229972,1777275338021,1000.0,0.00032876,120]
[421229973,1777275338257,1000.0,0.00032876,120]
[421229974,1777275338500,1000.0,0.00032876,120]
[421229975,1777275338739,1000.0,0.00032876,120]
[421229976,1777275338967,1000.0,0.00032876,120]
[421229977,1777275339184,1000.0,0.00032876,120]
[421229978,1777275339438,1000.0,0.00032876,120]
[421229979,1777275339659,1000.0,0.00032876,120]
[421229980,1777275339882,1000.0,0.00032876,120]
[421229981,1777275340108,1000.0,0.00032876,120]
[421229982,1777275340349,1000.0,0.00032876,120]
[421229983,1777275340578,1000.0,0.00032876,120]
[421229984,1777275340806,1000.0,0.00032876,120]
[421229985,1777275341418,1000.0,0.00032876,120]
[421229986,1777275341486,1000.0,0.00032876,120]
[421229987,1777275341532,1000.0,0.00032876,120]
[421229988,1777275341705,1000.0,0.00032876,120]
[421229989,1777275341938,919.33507901,0.00032876,120]
[421229990,1777275348939,941.0,0.0003287,120]
[421229991,1777275351591,175.0,0.0003287,120]
[421229992,1777275352371,162.0,0.0003287,120]
[421229993,1777275355794,150.0,0.00032877,120]
[421229994,1777275400610,235.2031528,0.0003287,120]
[421229995,1777275402586,176.05058893,0.0003287,120]
[421229996,1777275435106,500.0,0.000328,120]
[421229997,1777275448285,500.0,0.000328,120]
[421229998,1777275455410,500.0,0.000328,120]
[421229999,1777275457037,500.0,0.0003287,120]
[421230000,1777275462694,500.0,0.000328,120]
[421230001,1777275496319,814.85428176,0.000321,120]
[421230002,1777275542366,2663.79413567,0.00027372,120]
[421230003,1777275570517,1400.0,0.00032876,120]
[421230004,1777275698713,2042.4896212,0.00027456,120]
[421230005,1777275773419,350.1,0.00032877,120]
[421230006,1777275783016,468.3,0.00032877,120]
[421230007,1777275809978,500.0,0.0003287,120]
[421230008,1777275815664,651.88342541,0.000321,120]
[421230009,1777275855348,653.05403514,0.00028283,120]
[421230010,1777275901169,2030.9457577,0.00032877,120]
[421230011,1777275902669,441.00321276,0.0003,120]
[421230013,1777276031334,1572.02766337,0.00032876,120]
[421230014,1777276047196,584.23,0.00032844,120]
[421230015,1777276081842,1177.0,0.00032876,120]
[421230016,1777276085850,304.0,0.00032876,120]
[421230017,1777276098297,1000.0,0.000166,120]
[421230018,1777276134151,521.50674032,0.000321,120]
[421230019,1777276140581,781.10151516,0.00032877,120]
[421230020,1777276141218,180.0,0.00032713,120]
[421230021,1777276161203,1000.0,0.000166,120]
[421230022,1777276161969,500.0,0.0003287,120]
[421230023,1777276227349,1017.28802,0.000316,120]
[421230024,1777276229234,1240.22,0.00032877,120]
[421230033,1777276231845,-150.0,9.025e-05,2]
[421230034,1777276231855,-150.0,9.025e-05,2]
[421230035,1777276231898,-267.0,9.025e-05,2]
[421230036,1777276231908,-250.0,9.245e-05,2]
[421230037,1777276231917,-834.1837267,9.699e-05,2]
[421230038,1777276231928,-365.8162733,9.699e-05,2]
[421230039,1777276231938,-400.0,9.7e-05,3]
[421230040,1777276231947,-6212.01959605,9.7e-05,2]
[421230041,1777276231974,-3071.81881226,9.7e-05,2]
[421230042,1777276232058,-137380.25369169,9.7e-05,2]
[421230043,1777276232068,-2500.0,9.7e-05,2]
[421230044,1777276232077,-867.74,9.7e-05,2]
[421230045,1777276232086,-1093.73,9.702e-05,2]
[421230046,1777276232095,-165.219,9.702e-05,2]
[421230047,1777276232104,-500.0,9.773e-05,2]
[421230049,1777276232114,-150.0,9.799e-05,2]
[421230051,1777276232126,-505.72454836,9.799e-05,2]
[421230053,1777276232135,-500.0,9.799e-05,2]
[421230055,1777276232144,-500.0,9.799e-05,2]
[421230056,1777276232154,-500.0,9.799e-05,2]
[421230057,1777276232163,-609.04396597,9.799e-05,2]
[421230058,1777276232172,-500.0,9.799e-05,2]
[421230059,1777276232181,-500.0,9.799e-05,2]
[421230060,1777276232190,-500.0,9.799e-05,2]
[421230061,1777276232199,-500.0,9.799e-05,2]
[421230062,1777276232208,-591.3722584,9.799e-05,2]
[421230063,1777276232217,-409.83209426,9.799e-05,2]
[421230066,1777276232227,-500.0,9.799e-05,2]
[421230068,1777276232237,-500.0,9.799e-05,2]
[421230070,1777276232246,-500.0,9.799e-05,2]
[421230072,1777276232256,-446.27475476,9.799e-05,2]
[421230073,1777276232265,-500.0,9.799e-05,2]
[421230074,1777276232274,-500.0,9.799e-05,2]
[421230075,1777276232283,-500.0,9.799e-05,2]
[421230076,1777276232292,-500.0,9.799e-05,2]
[421230077,1777276232301,-500.0,9.799e-05,2]
[421230078,1777276232311,-500.0,9.799e-05,2]
[421230079,1777276232320,-500.0,9.799e-05,2]
[421230080,1777276232329,-500.0,9.799e-05,2]
[421230081,1777276232338,-500.0,9.799e-05,2]
[421230082,1777276232347,-500.0,9.799e-05,2]
[421230083,1777276232360,-337.26320013,9.799e-05,2]
[421230084,1777276232369,-500.0,9.799e-05,2]
[421230085,1777276232379,-300.0,9.799e-05,2]
[421230086,1777276232388,-250.0,9.799e-05,2]
[421230087,1777276232398,-33096.7482,9.8e-05,2]
[421230088,1777276232407,-800.0,9.8e-05,3]
[421230089,1777276232416,-6709.95557702,9.8e-05,2]
[421230090,1777276232429,-21480.48137693,9.8e-05,2]
[421230094,1777276238063,-4693.87930378,9.8e-05,2]
[421230095,1777276238164,-816.62506821,9.8e-05,2]
[421230116,1777276246991,-612.99782935,9.8e-05,2]
[421230117,1777276247046,-7950.10705437,9.8e-05,2]
[421230118,1777276247155,-65163.11352609,9.8e-05,2]
[421230119,1777276247208,-7147.76965813,9.8e-05,2]
[421230120,1777276247316,-507.0,9.8e-05,2]
[421230142,1777276248749,1387.69,0.00030822,120]
[421230143,1777276249071,1387.69,0.00031398,120]
[421230144,1777276249393,1387.71,0.00031973,120]
[421230147,1777276253891,152.0,9.868e-05,30]
[421230150,1777276260309,609.98049183,0.00023146,120]
[421230151,1777276402045,1194.5,0.00032877,120]
[421230152,1777276419021,971.75,0.00032876,120]
[421230153,1777276420979,321.35186945,0.00032876,120]
[421230154,1777276421469,765.4,0.00032876,120]
[421230155,1777276421597,856.32,0.00032876,120]
[421230156,1777276421817,194.35643986,0.00032876,120]
[421230157,1777276422379,626.41634718,0.00032876,120]
[421230158,1777276422408,160.88436816,0.00032876,120]
[421230159,1777276423121,885.95,0.00032876,120]
[421230160,1777276423898,1161.99,0.00032876,120]
[421230161,1777276423936,500.0,0.00032876,120]
[421230162,1777276424180,500.0,0.00032876,120]
[421230163,1777276424236,842.62,0.00032876,120]
[421230164,1777276425824,162.45039999,0.00032876,120]
[421230165,1777276426228,500.0,0.00032876,120]
[421230166,1777276426270,500.0,0.00032876,120]
[421230167,1777276426326,665.17,0.00032876,120]
[421230168,1777276426799,500.0,0.00032876,120]
[421230169,1777276427599,597.5548025,0.00032876,120]
[421230170,1777276429655,1949.59,0.00032876,120]
[421230171,1777276429727,500.0,0.00032876,120]
[421230172,1777276429927,311.4845999,0.00032876,120]
[421230173,1777276430152,500.0,0.00032876,120]
[421230174,1777276430191,578.23979283,0.00032876,120]
[421230175,1777276430311,668.63,0.00032876,120]
[421230176,1777276431826,328.68714532,0.00032876,120]
[421230177,1777276431891,401.99018263,0.00032876,120]
[421230178,1777276432520,276.19556969,0.00032876,120]
[421230179,1777276432781,500.0,0.00032876,120]
[421230180,1777276433066,500.0,0.00032876,120]
[421230181,1777276433227,500.0,0.00032876,120]
[421230182,1777276433316,500.0,0.00032876,120]
[421230183,1777276433965,2571.44,0.00032876,120]
[421230184,1777276434501,629.97310889,0.00032876,120]
[421230185,1777276436354,500.0,0.00032876,120]
[421230186,1777276436773,500.0,0.00032876,120]
[421230187,1777276438025,500.0,0.00032876,120]
[421230188,1777276438124,607.02,0.00032876,120]
[421230189,1777276439530,604.92185871,0.00032876,120]
[421230190,1777276439672,500.0,0.00032876,120]
[421230191,1777276440400,500.0,0.00032876,120]
[421230192,1777276440606,500.0,0.00032876,120]
[421230193,1777276441070,581.24051218,0.00032876,120]
[421230194,1777276441249,500.0,0.00032876,120]
[421230195,1777276441653,251.4286544,0.00032876,120]
[421230196,1777276443609,502.23889689,0.00032876,120]
[421230197,1777276444079,1000.0,0.00032876,120]
[421230198,1777276444410,500.0,0.00032876,120]
[421230199,1777276445277,500.0,0.00032876,120]
[421230200,1777276445768,239.93729314,0.00032876,120]
[421230201,1777276447542,694.64,0.00032876,120]
[421230202,1777276447948,316.17556973,0.00032876,120]
[421230203,1777276447995,500.0,0.00032876,120]
[421230204,1777276448685,500.0,0.00032876,120]
[421230205,1777276448720,500.0,0.00032876,120]
[421230206,1777276449057,500.0,0.00032876,120]
[421230207,1777276449686,182.2620201,0.00032876,120]
[421230208,1777276449896,382.49773259,0.00032876,120]
[421230209,1777276449929,500.0,0.00032876,120]
[421230210,1777276450515,500.0,0.00032876,120]
[421230211,1777276451787,2513.72,0.00032876,120]
[421230212,1777276452192,929.02,0.00032876,120]
[421230213,1777276453556,417.20539226,0.000321,120]
[421230214,1777276454640,2022.59,0.00032876,120]
[421230215,1777276456149,217.72702965,0.00032876,120]
[421230216,1777276456917,500.0,0.00032876,120]
[421230217,1777276457543,500.0,0.00032876,120]
[421230218,1777276457884,46492.59,0.00032876,120]
[421230219,1777276459609,11557.21,0.00032876,120]
[421230220,1777276459674,500.0,0.00032876,120]
[421230221,1777276460478,392.31958186,0.00032876,120]
[421230222,1777276460701,500.0,0.00032876,120]
[421230223,1777276460739,500.0,0.00032876,120]
[421230224,1777276461163,500.0,0.00032876,120]
[421230225,1777276461484,500.0,0.00032876,120]
[421230226,1777276463321,500.0,0.00032876,120]
[421230227,1777276464040,500.0,0.00032876,120]
[421230228,1777276466832,486.2593917,0.00032876,120]
[421230229,1777276467453,500.0,0.00032876,120]
[421230230,1777276467644,500.0,0.00032876,120]
[421230231,1777276468116,500.0,0.00032876,120]
[421230232,1777276468494,209.95870283,0.00032876,120]
[421230233,1777276468877,611.76307982,0.00032876,120]
[421230234,1777276469001,274.37266022,0.00032876,120]
[421230235,1777276469674,500.0,0.00032876,120]
[421230236,1777276470230,500.0,0.00032876,120]
[421230237,1777276470913,500.0,0.00032876,120]
[421230238,1777276472361,1039.16,0.00032876,120]
[421230239,1777276472730,500.0,0.00032876,120]
[421230240,1777276472816,535.06,0.00032876,120]
[421230241,1777276473558,500.0,0.00032876,120]
[421230242,1777276473670,690.22,0.00032876,120]
[421230243,1777276473951,587.26,0.00032876,120]
[421230244,1777276474641,500.0,0.00032876,120]
[421230245,1777276476960,647.04992914,0.00032876,120]
[421230246,1777276478126,1050.27,0.00032876,120]
[421230247,1777276478252,453.93636034,0.00032876,120]
[421230248,1777276479890,714.1,0.00032876,120]
[421230249,1777276479921,2198.71,0.00032876,120]
[421230250,1777276480067,1563.21,0.00032876,120]
[421230251,1777276480100,500.0,0.00032876,120]
[421230252,1777276480664,500.0,0.00032876,120]
[421230254,1777276480853,500.0,0.00032876,120]
[421230255,1777276481674,500.0,0.00032876,120]
[421230256,1777276482065,594.91471636,0.00032876,120]
[421230257,1777276485131,500.0,0.00032876,120]
[421230258,1777276485269,512.76,0.00032876,120]
[421230259,1777276485435,500.0,0.00032876,120]
[421230260,1777276486009,500.0,0.00032876,120]
[421230261,1777276487621,500.0,0.00032876,120]
[421230262,1777276488169,500.0,0.00032876,120]
[421230263,1777276488631,500.0,0.00032876,120]
[421230264,1777276490002,504.96,0.00032876,120]
[421230265,1777276490953,323.50389272,0.00032876,120]
[421230266,1777276491627,500.0,0.00032876,120]
[421230267,1777276491817,431.32274758,0.00032876,120]
[421230268,1777276491951,500.0,0.00032876,120]
[421230269,1777276492784,2107.1,0.00032876,120]
[421230270,1777276492816,500.0,0.00032876,120]
[421230271,1777276493565,1652.01,0.00032876,120]
[421230272,1777276495833,340.82087719,0.00032876,120]
[421230273,1777276496427,500.0,0.00032876,120]
[421230274,1777276497319,231.75577415,0.00032876,120]
[421230275,1777276498926,1426.39030604,0.00032876,120]
[421230276,1777276499222,500.0,0.00032876,120]
[421230277,1777276499481,500.0,0.00032876,120]
[421230278,1777276499752,665.63,0.00032876,120]
[421230279,1777276499832,899.06,0.00032876,120]
[421230280,1777276499862,500.0,0.00032876,120]
[421230281,1777276500454,1189.69,0.00032876,120]
[421230282,1777276500983,500.0,0.00032876,120]
[421230283,1777276501270,619.07158145,0.00032876,120]
[421230284,1777276502450,1463.45,0.00032876,120]
[421230285,1777276503198,1396.92,0.00032876,120]
[421230286,1777276504709,500.0,0.00032876,120]
[421230287,1777276505791,4858.74,0.00032876,120]
[421230288,1777276506559,500.0,0.00032876,120]
[421230289,1777276506911,528.0,0.00032876,120]
[421230290,1777276508014,500.0,0.0003287,120]
[421230291,1777276511055,500.0,0.00032876,120]
[421230292,1777276511085,500.0,0.00032876,120]
[421230293,1777276511115,574.29,0.00032876,120]
[421230294,1777276511153,500.0,0.00032876,120]
[421230295,1777276511756,789.9,0.00032876,120]
[421230296,1777276511954,2500.8,0.00032876,120]
[421230297,1777276512659,461.15261338,0.00032876,120]
[421230298,1777276514080,500.0,0.00032876,120]
[421230299,1777276514327,500.0,0.00032876,120]
[421230300,1777276514410,356.96102202,0.00032876,120]
[421230301,1777276516288,1889.23,0.00032876,120]
[421230302,1777276516954,500.0,0.00032876,120]
[421230303,1777276517566,3378.07348677,0.00032876,120]
[421230305,1777276518521,1534.75,0.00032876,120]
[421230306,1777276518688,2231.73,0.00032876,120]
[421230307,1777276518860,500.0,0.00032876,120]
[421230309,1777276519031,255.57727126,0.00032876,120]
[421230311,1777276520428,563.65510205,0.00032876,120]
[421230312,1777276521461,442.43258271,0.00032876,120]
[421230313,1777276522187,500.0,0.00032876,120]
[421230314,1777276522947,331.26248475,0.00032876,120]
[421230315,1777276524678,500.0,0.00032876,120]
[421230316,1777276525539,500.0,0.00032876,120]
[421230317,1777276526013,500.0,0.00032876,120]
[421230318,1777276526061,503.21994214,0.00032876,120]
[421230319,1777276527665,500.0,0.00032876,120]
[421230320,1777276528762,500.0,0.00032876,120]
[421230321,1777276528889,500.0,0.00032876,120]
[421230322,1777276529038,524.77364731,0.00032876,120]
[421230323,1777276529314,770.15,0.00032876,120]
[421230324,1777276529348,413.82519107,0.00032876,120]
[421230325,1777276529734,459.36200406,0.00032876,120]
[421230326,1777276530142,1668.29,0.00032876,120]
[421230327,1777276533013,3441.43,0.00032876,120]
[421230328,1777276533451,500.0,0.00032876,120]
[421230329,1777276533685,1005.48,0.00032876,120]
[421230330,1777276534329,604.68905808,0.00032876,120]
[421230331,1777276534614,5000.0,0.00032876,120]
[421230332,1777276534762,500.0,0.00032876,120]
[421230333,1777276534795,248.1456633,0.00032876,120]
[421230334,1777276535124,640.22,0.00032876,120]
[421230335,1777276537010,556.83299708,0.00032876,120]
[421230336,1777276537746,500.0,0.00032876,120]
[421230337,1777276537812,637.9,0.00032876,120]
[421230338,1777276537852,500.0,0.00032876,120]
[421230339,1777276539113,500.0,0.00032876,120]
[421230340,1777276540142,485.21891673,0.00032876,120]
[421230341,1777276540378,500.0,0.00032876,120]
[421230342,1777276540790,5000.0,0.00032876,120]
[421230343,1777276540825,638.55793001,0.00032876,120]
[421230344,1777276541162,263.84518231,0.00032876,120]
[421230345,1777276542368,500.0,0.00032876,120]
[421230346,1777276542962,243.54250855,0.00032876,120]
[421230347,1777276543062,620.86,0.00032876,120]
[421230348,1777276543177,291.39217053,0.00032876,120]
[421230349,1777276544856,500.0,0.00032876,120]
[421230350,1777276545511,347.49295878,0.00032876,120]
[421230351,1777276545997,506.0,0.00032876,120]
[421230352,1777276546304,594.99,0.00032876,120]
[421230353,1777276547021,5000.0,0.00032876,120]
[421230354,1777276547230,500.0,0.00032876,120]
[421230355,1777276547989,500.0,0.00032876,120]
[421230356,1777276548181,1222.65,0.00032876,120]
[421230357,1777276548759,500.0,0.00032876,120]
[421230358,1777276549020,758.9,0.00032876,120]
[421230359,1777276549053,500.0,0.00032876,120]
[421230360,1777276550036,623.21692593,0.00032876,120]
[421230362,1777276551628,1484.05,0.00032876,120]
[421230363,1777276551711,725.99,0.00032876,120]
[421230364,1777276551841,500.0,0.00032876,120]
[421230366,1777276553793,5000.0,0.00032876,120]
[421230367,1777276554437,1958.15,0.00032876,120]
[421230369,1777276555698,1470.8,0.00032876,120]
[421230370,1777276555749,500.0,0.00032876,120]
[421230371,1777276555958,500.0,0.00032876,120]
[421230373,1777276556718,500.0,0.00032876,120]
[421230374,1777276556869,500.0,0.00032876,120]
[421230375,1777276557871,591.23,0.00032876,120]
[421230376,1777276558475,5000.0,0.00032876,120]
[421230377,1777276559543,500.0,0.00032876,120]
[421230378,1777276559619,960.75,0.00032876,120]
[421230379,1777276560277,500.0,0.00032876,120]
[421230380,1777276560483,580.83016694,0.00032876,120]
[421230381,1777276561094,2353.66,0.00032876,120]
[421230382,1777276563004,500.0,0.00032876,120]
[421230383,1777276563038,4209.95,0.00032876,120]
[421230384,1777276563110,500.0,0.00032876,120]
[421230385,1777276563147,727.28,0.00032876,120]
[421230386,1777276564630,5000.0,0.00032876,120]
[421230387,1777276565322,500.0,0.00032876,120]
[421230388,1777276565813,500.0,0.00032876,120]
[421230389,1777276565854,969.16,0.00032876,120]
[421230390,1777276566554,804.11,0.00032876,120]
[421230391,1777276566893,967.57,0.00032876,120]
[421230392,1777276568451,500.0,0.00032876,120]
[421230393,1777276568923,500.0,0.00032876,120]
[421230394,1777276570291,500.0,0.00032876,120]
[421230395,1777276570395,4026.23,0.00032876,120]
[421230396,1777276570805,5000.0,0.00032876,120]
[421230397,1777276570836,231.86927999,0.00032876,120]
[421230398,1777276572701,844.54,0.00032876,120]
[421230399,1777276573750,500.0,0.00032876,120]
[421230400,1777276574316,500.0,0.00032876,120]
[421230401,1777276575753,252.54087703,0.00032876,120]
[421230402,1777276576732,500.0,0.00032876,120]
[421230403,1777276576846,928.78,0.00032876,120]
[421230404,1777276577308,500.0,0.00032876,120]
[421230405,1777276577836,500.0,0.00032876,120]
[421230406,1777276578470,500.0,0.00032876,120]
[421230407,1777276579013,287.06784638,0.00032876,120]
[421230408,1777276579988,849.03,0.00032876,120]
[421230409,1777276580050,500.0,0.00032876,120]
[421230410,1777276580082,35107.49875653,0.00032081,120]
[421230411,1777276580872,1134.9,0.00032876,120]
[421230412,1777276581832,290.467581,0.00032876,120]
[421230413,1777276582130,500.0,0.00032876,120]
[421230414,1777276583160,500.0,0.00032876,120]
[421230415,1777276583479,500.0,0.00032876,120]
[421230416,1777276583657,500.0,0.00032876,120]
[421230417,1777276583688,435.50982894,0.00032876,120]
[421230418,1777276583779,500.0,0.00032876,120]
[421230419,1777276585566,358.51730664,0.00032876,120]
[421230420,1777276585632,274.23961337,0.00032876,120]
[421230421,1777276587290,744.62,0.00032876,120]
[421230422,1777276587701,500.0,0.00032876,120]
[421230423,1777276587736,500.0,0.00032876,120]
[421230424,1777276588139,457.07911681,0.00032876,120]
[421230425,1777276588348,500.0,0.00032876,120]
[421230426,1777276588556,500.0,0.00032876,120]
[421230427,1777276589761,1875.6,0.00032876,120]
[421230428,1777276590078,597.30748264,0.00032876,120]
[421230429,1777276590962,500.0,0.00032876,120]
[421230430,1777276591224,1394.08,0.00032876,120]
[421230431,1777276591330,1187.07,0.00032876,120]
[421230432,1777276591482,500.0,0.00032876,120]
[421230433,1777276592300,339.19800796,0.00032876,120]
[421230434,1777276592698,1022.92,0.00032876,120]
[421230435,1777276592729,500.0,0.00032876,120]
[421230436,1777276593317,571.55756549,0.00032876,120]
[421230437,1777276593407,500.0,0.00032876,120]
[421230438,1777276593621,323.47555809,0.00032876,120]
[421230439,1777276593665,500.0,0.00032876,120]
[421230440,1777276594340,500.0,0.00032876,120]
[421230441,1777276594899,500.0,0.00032876,120]
[421230442,1777276595660,238.66882404,0.00032876,120]
[421230443,1777276595909,474.73730606,0.00032876,120]
[421230444,1777276596531,1335.66,0.00032876,120]
[421230445,1777276596731,1280.15,0.00032876,120]
[421230446,1777276598181,246.37485307,0.00032876,120]
[421230447,1777276598825,548.66,0.00032876,120]
[421230448,1777276599370,500.0,0.00032876,120]
[421230449,1777276599566,500.0,0.00032876,120]
[421230450,1777276600893,500.0,0.00032876,120]
[421230451,1777276600963,500.0,0.00032876,120]
[421230452,1777276601529,6105.98,0.00032876,120]
[421230453,1777276602201,500.0,0.00032876,120]
[421230454,1777276603343,652.49,0.00032876,120]
[421230455,1777276603824,500.0,0.00032876,120]
[421230456,1777276604189,2009.45,0.00032876,120]
[421230457,1777276605347,500.0,0.00032876,120]
[421230458,1777276605384,500.0,0.00032876,120]
[421230459,1777276606488,500.0,0.00032876,120]
[421230460,1777276606539,1352.31,0.00032876,120]
[421230461,1777276606808,500.0,0.00032876,120]
[421230462,1777276607210,381.84668354,0.00032876,120]
[421230463,1777276607429,500.0,0.00032876,120]
[421230464,1777276607471,520.39905785,0.00032876,120]
[421230465,1777276607973,1169.25,0.00032876,120]
[421230466,1777276609863,607.6083791,0.00032876,120]
[421230467,1777276609968,500.0,0.00032876,120]
[421230468,1777276610951,2947.18,0.00032876,120]
[421230469,1777276611522,361.75250998,0.00032876,120]
[421230470,1777276612293,500.0,0.00032876,120]
[421230471,1777276612418,633.03,0.00032876,120]
[421230472,1777276613148,500.0,0.00032876,120]
[421230473,1777276613655,500.0,0.00032876,120]
[421230474,1777276613922,500.0,0.00032876,120]
[421230475,1777276614407,500.0,0.00032876,120]
[421230476,1777276614438,419.02152109,0.00032876,120]
[421230477,1777276618282,637.1815,0.00032876,120]
[421230478,1777276618360,500.0,0.00032876,120]
[421230479,1777276618703,283.69091617,0.00032876,120]
[421230480,1777276621035,435.35445583,0.00032876,120]
[421230481,1777276621077,500.0,0.00032876,120]
[421230482,1777276621219,500.0,0.00032876,120]
[421230483,1777276621262,840.91,0.00032876,120]
[421230484,1777276622506,546.95,0.00032876,120]
[421230485,1777276622535,413.73120647,0.00032876,120]
[421230486,1777276622854,2305.15,0.00032876,120]
[421230487,1777276624894,173.08335158,0.00032876,120]
[421230488,1777276625274,500.0,0.00032876,120]
[421230489,1777276626524,500.0,0.00032876,120]
[421230490,1777276626705,424.64752925,0.00032876,120]
[421230491,1777276627561,500.0,0.00032876,120]
[421230492,1777276628376,151.50053501,0.00032876,120]
[421230493,1777276631574,247.03576089,0.00032876,120]
[421230494,1777276631607,502.87352624,0.00032876,120]
[421230495,1777276631764,358.02072259,0.00032876,120]
[421230496,1777276632083,927.65,0.00032876,120]
[421230497,1777276632506,520.69,0.00032876,120]
[421230498,1777276632542,875.24,0.00032876,120]
[421230499,1777276632694,2000.0,0.00032877,120]
[421230500,1777276633047,500.0,0.00032876,120]
[421230501,1777276633101,500.0,0.00032876,120]
[421230502,1777276633261,500.0,0.00032876,120]
[421230503,1777276633919,580.91682531,0.00032876,120]
[421230504,1777276634934,1498.07,0.00032876,120]
[421230505,1777276635134,354.323926,0.00032876,120]
[421230506,1777276635284,738.06,0.00032876,120]
[421230507,1777276635560,622.22242868,0.00032876,120]
[421230508,1777276636172,273.61820374,0.00032876,120]
[421230509,1777276637245,833.8,0.00032876,120]
[421230510,1777276637819,340.9633819,0.00032876,120]
[421230511,1777276638258,780.43,0.00032876,120]
[421230512,1777276638433,564.06315292,0.00032876,120]
[421230513,1777276639470,179.13685268,0.00032876,120]
[421230514,1777276639621,2000.0,0.00032877,120]